Cogmind - Beta 12 @@@ ROGUE MODE // 2023.09.07 @ 22:50:47 Player: monistgf Result: Destroyed by G-34 Mercenary with Small Laser Performance ------------- Evolutions (0) 0 Regions Visited (1) 200 Robots Destroyed (12) 60 Value Destroyed (331) 331 Prototype IDs (0) 0 Alien Tech Used (0) 0 Bonus (0) 0 TOTAL SCORE: 591 Bonus ------- None Cogmind --------- Core Integrity 0/250 Matter 287/300 Energy 160/160 System Corruption 0% Temperature Cool (6) Movement Walking (120) Location -10/Materials Parts ------- > --- POWER (1) -------- Light Nuclear Core > --- PROPULSION (2) --- Aluminum Leg Aluminum Leg > --- UTILITY (2) ------ Small Storage Unit Hacking Suite > --- WEAPON (2) ------- Light Assault Rifle > --- INVENTORY (8) ---- Ion Engine Ion Engine Aluminum Leg Aluminum Leg Aluminum Leg Aluminum Leg Large Matter Pod (15) Peak State ------------ > --- POWER ------------ Light Nuclear Core > --- PROPULSION ------- Aluminum Leg Compact Wheel > --- UTILITY ---------- Small Storage Unit Hacking Suite > --- WEAPON ----------- Assault Rifle Assault Rifle > --- INVENTORY -------- Ion Engine Ion Engine Ion Engine Large Matter Pod Medium Laser Small Laser Light Assault Rifle [Rating: 11] Favorites ----------- Power Light Nuclear Core Engine Ion Engine Power Core Light Nuclear Core Propulsion Compact Wheel Leg Aluminum Leg Wheel Compact Wheel Utility Small Storage Unit Storage Small Storage Unit Hackware Hacking Suite Weapon Assault Rifle Energy Gun Medium Laser Ballistic Gun Assault Rifle Build | -11 -10 ------- Run | Jun Mat Slots Evolved . | . . Power . | . . Propulsion . | . . Utility . | . . Weapon . | . . Parts Attached 14 | 6 8 Power 2 | 1 1 Engine 1 | 1 . Core 1 | . 1 Reactor . | . . Propulsion 6 | 2 4 Treads . | . . Leg 4 | . 4 Wheel 2 | 2 . Hover . | . . Flight . | . . Utility 2 | 1 1 Device . | . . Storage 1 | 1 . Processor . | . . Hackware 1 | . 1 Protection . | . . Artifact . | . . Weapon 4 | 2 2 Energy Gun 1 | 1 . Energy Cannon . | . . Ballistic Gun 3 | 1 2 Ballistic Cannon . | . . Launcher . | . . Special Weapon . | . . Impact Weapon . | . . Slashing Weapon . | . . Piercing Weapon . | . . Special Melee Weapon . | . . Unidentified Prototypes . | . . Parts Lost 3 | . 3 Power . | . . Propulsion 1 | . 1 Utility . | . . Weapon 2 | . 2 Highest Loss Streak 1 | . 1 To Critical Strikes . | . . Average Slot Usage (%) 86 | . 86 Engine 5 | . 5 Core 8 | . 8 Leg 7 | . 7 Wheel 18 | . 18 Storage 14 | . 14 Hackware 5 | . 5 Energy Gun 1 | . 1 Ballistic Gun 24 | . 24 Naked Turns . | . . Heaviest Build 14 | 14 14 Greatest Support 32 | 32 32 Greatest Overweight (x) 1 | . 1 Average Overweight (x) . | . . Largest Inventory Capacity 8 | 8 8 Average Capacity 7 | 6 8 Most Carried 8 | 2 8 Average Carried 5 | 1 5 Final Capacity 8 | 8 8 Final Carried 7 | 2 7 Class Distribution -------------------- 72% | Mutant 27% | Scavenger-Mutant Dominant Class ---------------- Mutant | -10/Materials Resources | -11 -10 ----------- Run | Jun Mat Matter Collected 571 | 233 338 Remotely . | . . Salvage Created 383 | . 383 Parts 29 | . 29 Haulers Intercepted . | . . Recyclers Shooed . | . . Parts Field Recycled . | . . Retrieved Matter . | . . Parts Self-Destructed . | . . Prevented . | . . Kills | -11 -10 ------- Run | Jun Mat Combat Hostiles Destroyed 11 | . 11 Guns 11 | . 11 Classes Destroyed 3 | . 3 Operator 1 | . 1 Swarmer 3 | . 3 Grunt 8 | . 8 Best Kill Streak 5 | . 5 Combat Bots Only 5 | . 5 Max Kills in Single Turn 1 | . 1 Gunslinging . | . . Exploded . | . . Melee . | . . Uniques/NPCs Destroyed . | . . Combat | -11 -10 -------- Run | Jun Mat Damage Taken 802 | . 802 Core 260 | . 260 Absorbed by Shields . | . . Core Remaining (%) 100 | 100 . Volleys Fired 62 | . 62 Largest 2 | . 2 Hottest 40 | . 40 Shots Fired 104 | . 104 Gun 104 | . 104 Cannon . | . . Launcher . | . . Special . | . . Kinetic 104 | . 104 Thermal . | . . Explosive . | . . Electromagnetic . | . . Robot Hit Streak 8 | . 8 Robot Miss Streak 3 | . 3 Penetration Max . | . . Secondary Targets 1 | . 1 Max Gunslinging Chain 1 | . 1 Shots Hit Robots 64 | . 64 Core Hits 20 | . 20 Critical Kills 1 | . 1 Critical Parts Destroyed . | . . Critical Strikes 1 | . 1 Destroy 1 | . 1 Melee Attacks . | . . Impact . | . . Slashing . | . . Piercing . | . . Sneak Attacks . | . . Combat Hostiles . | . . Follow-up Attacks . | . . Damage Inflicted 730 | . 730 Guns 723 | . 723 Cannons . | . . Explosions . | . . Melee . | . . Ramming 7 | . 7 Kinetic 723 | . 723 Thermal . | . . Explosive . | . . Electromagnetic . | . . Impact . | . . Slashing . | . . Piercing . | . . Highest Corruption . | . . Average Corruption . | . . Corruption Purged . | . . Corruption Blocked . | . . Overload Shots . | . . Overflow Damage . | . . Projectiles . | . . Explosions . | . . Melee . | . . Knockbacks . | . . Impact . | . . Kinetic . | . . Secondary . | . . Self-Inflicted Damage 3 | . 3 Shots . | . . Rammed 2 | . 2 Targets Rammed 2 | . 2 Kicked . | . . Crushed . | . . Highest Temperature 20 | . 20 Average Temperature 5 | . 5 Received Heat Transfer 375 | . 375 Siege Activations . | . . Robots Corrupted . | . . Combat Hostiles . | . . Parts Fried . | . . Impact Corruptions . | . . Robots Melted . | . . Combat Hostiles . | . . Parts Melted . | . . Heat Transferred . | . . Parts Sabotaged . | . . Parts Stolen . | . . Parts Stripped . | . . Power Chain Reactions . | . . Missiles Intercepted . | . . Alert | -11 -10 ------- Run | Jun Mat Peak Influence 300 | . 300 Initial . | . . Average 112 | . 126 Maximum Alert Level 1 | . 1 Low Security (%) 77 | 100 75 Level 1 22 | . 24 Level 2 . | . . Level 3 . | . . Level 4 . | . . Level 5 . | . . High Security . | . . Max Security . | . . Squads Dispatched 3 | . 3 Investigation 2 | . 2 Extermination . | . . Reinforcement 1 | . 1 Assault . | . . Garrison . | . . Intercept . | . . Searches Triggered . | . . Construction Impeded . | . . Haulers Reinforced . | . . Active Scanning Responses . | . . Cargo Convoy Interrupts . | . . Stealth | -11 -10 --------- Run | Jun Mat Distress Signals 5 | . 5 Communications Jammed . | . . Distress Signals . | . . Times Spotted 21 | . 21 Peak Tracking Total 6 | . 6 Tactical Retreats 2 | . 2 Traps | -11 -10 ------- Run | Jun Mat Traps Triggered 1 | . 1 Indirectly . | . . Trap Hack Attempts . | . . Triggered . | . . Disarmed . | . . Reprogrammed . | . . Reused . | . . Traps Extracted . | . . Installed . | . . Triggered . | . . Machines | -11 -10 ---------- Run | Jun Mat Machines Disabled . | . . Max in Single Turn . | . . Machines Repaired . | . . Machines Sabotaged . | . . Overloaded Fab Kills . | . . Hacking | -11 -10 --------- Run | Jun Mat Machines Accessed 3 | . 3 Terminals 3 | . 3 Fabricators . | . . Repair Stations . | . . Recycling Units . | . . Scanalyzers . | . . Garrison Access . | . . Total Hacks 11 | . 11 Successful 4 | . 4 Failed 7 | . 7 Catastrophic 1 | . 1 Database Lockouts . | . . Manual 5 | . 5 Terminals 11 | . 11 Fabricators . | . . Repair Stations . | . . Recycling Units . | . . Scanalyzers . | . . Garrison Access . | . . Terminal Hacks 4 | . 4 Robot Analysis 1 | . 1 Branch Access Points 1 | . 1 Hauler Manifests 1 | . 1 Registered Components 1 | . 1 Fabricator Hacks . | . . Repair Station Hacks . | . . Recycling Unit Hacks . | . . Scanalyzer . | . . Garrison Access Hacks . | . . Unauthorized Hacks . | . . Terminals . | . . Fabricators . | . . Repair Stations . | . . Recycling Units . | . . Scanalyzers . | . . Garrison Access . | . . Data Cores Recovered 1 | . 1 Used 1 | . 1 Hacking Detections 3 | . 3 Full Trace Events 2 | . 2 Feedback Events . | . . Feedback Blocked . | . . Robot Schematics Acquired . | . . Robots Built . | . . Authchips . | . . Time . | . . Total Robot Build Rating . | . . Part Schematics Acquired . | . . Parts Built . | . . Authchips . | . . Time . | . . Total Part Build Rating . | . . Parts Repaired . | . . Time . | . . Parts Recycled . | . . Recycled Matter . | . . Retrieved Matter . | . . Retrieved Components . | . . Parts Scanalyzed . | . . Part Schematics Acquired . | . . Parts Damaged . | . . Bothacking | -11 -10 ------------ Run | Jun Mat Used RIF Installer . | . . Robots Hacked . | . . Non-combat . | . . Combat . | . . Robot Hacks Applied . | . . Relay Couplers Released . | . . Fabnet Peak Effective % . | . . Robots Rewired . | . . Allies Hacked . | . . Hacks Repelled . | . . Allies | -11 -10 -------- Run | Jun Mat Total Allies . | . . Largest Group . | . . Highest-Rated Group . | . . Highest-Rated Ally . | . . Total Orders . | . . Ally Attacks . | . . Total Damage . | . . Kills . | . . Allies Corrupted . | . . Allies Melted . | . . Intel | -11 -10 ------- Run | Jun Mat Robot Analysis Total 1 | . 1 Derelict Logs Recovered . | . . Drone Launches . | . . Drone Recoveries . | . . Exploration | -11 -10 ------------- Run | Jun Mat Turns Passed 496 | 54 442 Spaces Moved 244 | 41 203 Core 3 | 3 . Treads . | . . Legs 32 | . 32 Wheels 209 | 38 171 Hover . | . . Flight . | . . Fastest Speed 50 | 50 100 Average Speed 103 | 96 105 Slowest Speed 190 | 100 190 Overloaded Moves . | . . Propulsion Burnouts . | . . Robots Hopped . | . . Cave-ins Triggered . | . . Exploration Rate (%) 19 | 4 35 Regions Visited 1 Branch Regions . Pre-discovered Areas . | . . Known Exits Taken . | . . Unknown Exits Taken 1 | 1 . Scrap Searched . | . . Spaces Dug . | . . Terrain Destroyed . | . . Melee . | . . Projectile . | . . AOE . | . . Terrain Rammed . | . . Walls Destroyed . | . . Machines Disabled . | . . Actions | -11 -10 --------- Run | Jun Mat Total 385 | 52 333 Wait 50 | 4 46 Move 243 | 40 203 Hop . | . . Pick Up 8 | 2 6 Fast Attach 9 | 6 3 Attach 2 | . 2 Detach 2 | . 2 Swap 3 | . 3 Drop 4 | . 4 Fire 62 | . 62 Melee . | . . Ram 2 | . 2 Kick . | . . Crush . | . . Escape Stasis . | . . Rewire . | . . Trap . | . . Miscellaneous . | . . Route ------- -11/Junkyard -10/Materials (discovered 2 exits: Min x2) History --------- Turn | Location | Event 8 | -11/Junkyard | Discovered new exit (range 15) 55 | -11/Junkyard | Entered Materials 96 | -10/Materials | Identified exit to Mines 313 | -10/Materials | Build established: Mutant 362 | -10/Materials | Core integrity fell below 50% 458 | -10/Materials | Core integrity fell below 20% 497 | -10/Materials | Destroyed by G-34 Mercenary with Small Laser Last Messages --------------- 00407_ Acquired Aluminum Leg. 00408_ K-01 Serf collects debris. 00409_ Acquired Aluminum Leg. 00411_ K-01 Serf collects debris. 00411_ Dropped Ion Engine. 00412_ K-01 Serf collects debris. 00412_ Dropped Com. Wheel. 00415_ K-01 Serf collects debris. 00417_ Acquired 45 matter. 00427_ Triggered Alarm Trap. 00427_ An alarm sounds. 00427_ ALERT: Alarm triggered, dispatching investigation squad. 00428_ W-16 Scout sends out distress signal. 00451_ Assault Rifle destroyed. 00456_ R-06 Scavenger collects Heat Sink. 00459_ R-06 Scavenger collects Ion Engine. 00461_ G-34 Mercenary destroyed. 00467_ Acquired 50 matter. 00483_ W-16 Scout sends out distress signal. 00486_ U-05 Engineer lays Concrete. Map ----- +----------------------------------------------------+ | # ##?????????+^ T #??????? | | #?????????#^ ^ #??????? | | ?????????# """ ^ #??????? | | #?????????# """ #??????? | | #?????????# """ %######## | | ########??# # # | | # ==#### +[[ # | | + % + #**= " # | | # *#####+####"T"# !# [ """# | | # #?? ?##### *# """# | | # # """ #???# ! # """# | | # # """ #???# [+ "" # | | + # """ #???# # """# | | # # #???## ## ""# | | # # """ #????# ## """# | | # #??"" #????# ## ! " # | | # #???" #????# ## # | | # #??? #????# ## # | | # #???######????# ######### | | ########?????????????#u#???????? | | ########???????!?????# #???????? | | # #?????????????# #???????? | | # T #?????????????# #???????? | | # #?????????????# #???????? | | # #?????????????# #???????? | | # #??????#+######@#???????? | | # #?????# g=#???????? | | # #?????# g #???????? | | + #?????# ** #???????? | | ########?????# ** #???????? | | # ! #?????# ???????? | | # #?????# ???????? | | # "" #?????+ ???????? | | + "T #?????# ???????? | | # "" #?????# !!! ???????? | | # #?????# !! ???????? | | ########?????# !! ??????? | | # #?????# ###??????? | | + #?????+ ?????????? | | # #???????#####+#?????????? | | # """#???????????????????????? | | #### """#???????????????????????? | | ???# """#???????????????????????? | | ???# """#???????????????????????? | | ???# """#???????????????????????? | | ???# ????????????????????????? | | ???# ????????????????????????? | | ???#######????????????????????????? | | ??????????????????????????????????? | | | +----------------------------------------------------+ Best States ------------- Heat Dissipation 25 Energy Generation 14 Energy Capacity 250 Matter Stores 300 Matter Capacity 300 Sight Range 16 Terrain Scan Density 10 Evasion (%) 55 Offensive Hacking 10 Item Schematics ----------------- None Robot Schematics ------------------ None Fabricated ------------ Nothing Alien Tech Used ----------------- None Achievements -------------- None Challenges ------------ None Game ------ Seed ImpactThrusterChip Manual? 0 Play Time 00:05:54 Cumulative 28.9 hours Start 2023.09.07 @ 22:45:46 End 2023.09.07 @ 22:50:47 Sessions 1 Manual Loads 0 Difficulty Rogue Special Mode None Game No. 22 Rogue 22 Adventurer 0 Explorer 0 Win Type - Total 0 Types 0/0/0/0/0/0/0/0/0 Lore% 18 Gallery% 26 Achievement% 27 Wizard Run 0 Options --------- ASCII 0 Keyboard 1 Movement Numpad Keybinds 0 Fullscreen 1 Font 24/Terminus Map View 76x50 Tactical HUD 1 Map Filters NONE Filters NONE Steam 1 RUN: d5ad8ca6-ca80-47a8-bae0-b327c5c7d5f2